bitfinex/quotes_ETHUSD_20251212
["timestamp","ask_amount","ask_price","bid_price","bid_amount"]
[1765563255120,3.122333,3088.8,3088.1,0.002]
[1765563255653,6.4752161,3088.7,3088.1,0.1833]
[1765563256027,9.71282415,3088.7,3088.1,0.1833]
[1765563256258,6.4752161,3088.7,3088.1,0.1833]
[1765563256463,0.078,3088.2,3088.1,0.002]
[1765563256761,9.71282415,3088.7,3088.1,0.1833]
[1765563256921,9.71282415,3088.7,3088.1,0.002]
[1765563257253,6.4752161,3088.7,3088.1,0.1833]
[1765563257557,10.37969576,3088.7,3087.4,2.60559407]
[1765563257737,10.37969576,3088.7,3087.3,3.23907621]
[1765563258334,10.37969576,3088.7,3087.3,6.47815242]
[1765563258547,9.71282415,3088.7,3087.3,3.23907621]
[1765563258746,9.71282415,3088.7,3087.4,0.523]
[1765563258747,0.489,3088.6,3087.4,0.523]
[1765563259123,1.012,3088.6,3087.2,0.002]
[1765563259328,7.401364,3088.5,3087.2,0.002]
[1765563259525,16.726358,3088.4,3087.2,0.002]
[1765563259728,1.7215358,3088.3,3087.2,0.002]
[1765563259928,0.523,3088.2,3087.2,0.002]
[1765563260155,0.9846,3088.2,3087.2,0.002]
[1765563261829,6.4764742,3088.1,3087.2,0.002]
[1765563262155,3.2382371,3088.1,3087.3,0.3826]
[1765563262526,1.56507529,3088.8,3087.3,0.3826]
[1765563262730,9.71282415,3088.7,3087.3,0.3826]
[1765563263564,14.03952462,3088.7,3087.3,0.3826]
[1765563263762,0.4616,3088.6,3087.3,0.3826]
[1765563263962,0.4616,3088.6,3087.2,0.002]
[1765563263963,18.827464,3088.4,3087.4,0.523]
[1765563264133,10.591559,3088.4,3087.4,0.523]
[1765563264334,0.4616,3088.4,3087.4,0.523]
[1765563264530,0.9846,3088.3,3087.2,0.002]
[1765563264966,0.4616,3088.2,3087.2,0.002]
[1765563265567,7.490689,3088.1,3087.2,0.002]
[1765563266045,9.403575,3087.9,3087.2,0.002]
[1765563266246,2.80485428,3087.8,3087.2,0.002]
[1765563266645,0.4616,3087.7,3087.2,0.002]
[1765563267900,0.4961,3087.3,3087.2,0.002]
[1765563268174,3.73517621,3087.3,3087.2,0.002]
[1765563268336,4.19677621,3087.3,3087.2,0.002]
[1765563268539,4.94035049,3087.3,3087.2,0.002]
[1765563269068,3.23818373,3088.2,3087.2,0.7672]
[1765563269274,0.4616,3088.1,3087.2,0.002]
[1765563270135,9.71502588,3088.0,3087.2,0.002]
[1765563270337,6.47668392,3088.0,3087.2,0.002]
[1765563270635,6.47668392,3088.0,3087.2,0.3846]
[1765563272088,5.92088468,3088.7,3087.9,0.3826]
[1765563272243,3.23764368,3088.7,3087.9,0.3826]
[1765563272444,9.71289541,3088.7,3087.9,0.3826]
[1765563273183,9.71289541,3088.7,3087.6,0.523]
[1765563273184,0.4616,3088.6,3087.6,0.523]
[1765563273352,0.4616,3088.6,3087.4,0.3826]
[1765563273544,1.01744954,3088.5,3087.5,3.76179158]
[1765563273748,0.4616,3088.6,3087.5,3.76179158]
[1765563273945,0.4616,3088.6,3087.5,4.14439834]
[1765563274277,6.47563542,3088.5,3087.6,0.3826]
[1765563275054,9.71345313,3088.5,3087.5,0.523]
[1765563275352,10.17505313,3088.5,3087.5,0.523]
[1765563275972,10.73095844,3088.5,3087.3,0.3826]
[1765563276176,9.71408217,3088.3,3087.3,0.523]
[1765563276764,10.17568217,3088.3,3087.3,0.523]
[1765563276972,10.17568217,3088.3,3087.2,3.24117914]
[1765563277173,6.47605478,3088.3,3087.3,4.47877236]
[1765563277574,6.47605478,3088.3,3087.4,0.3826]
[1765563278249,3.23787601,3088.5,3087.4,0.3826]
[1765563279372,0.4616,3088.4,3087.4,0.9046]
[1765563279792,6.47542574,3088.6,3087.5,0.3826]
[1765563279993,3.23750323,3088.8,3087.6,0.73824876]
[1765563280180,3.23672095,3089.6,3087.7,0.3826]
[1765563280181,12.94833612,3089.2,3087.7,0.3826]
[1765563280387,12.94833612,3089.2,3087.4,0.522]
[1765563280388,0.1904,3088.9,3087.8,0.522]
[1765563280764,0.4616,3088.8,3087.8,0.522]
[1765563281285,0.4616,3088.8,3087.6,0.522]
[1765563281493,0.4616,3088.8,3087.4,0.3826]
[1765563281696,0.4616,3088.8,3087.5,0.522]
[1765563282391,12.036997,3088.6,3087.3,0.522]
[1765563282591,2.49874292,3088.5,3087.4,0.3826]
[1765563282916,6.4752161,3088.7,3087.5,6.47767006]
[1765563283096,6.4752161,3088.7,3087.6,0.3826]
[1765563284486,6.47506614,3088.8,3087.7,3.2386566]
[1765563284963,6.47506614,3088.8,3087.6,0.3778]
[1765563284964,9.71259921,3088.8,3087.6,3.61652528]
[1765563285364,1.6831043,3091.4,3088.7,0.4737]
[1765563285365,0.4626,3089.5,3088.7,0.4737]
[1765563285565,0.58047529,3089.3,3088.7,0.4737]
[1765563285764,1.65584516,3089.3,3088.7,0.4737]
[1765563285993,1.65584516,3089.3,3087.7,7.97196657]
[1765563286196,1.65584516,3089.3,3088.4,0.0959]
[1765563286197,2.11744516,3089.3,3088.4,0.0959]
[1765563286502,6.47416806,3089.2,3088.4,0.0959]
[1765563287401,10.57041341,3089.2,3088.4,0.0959]
[1765563287705,7.775201,3089.0,3088.1,0.0959]
[1765563288005,1.04207529,3089.1,3088.2,0.03238132]
[1765563288202,1.04207529,3089.1,3088.1,0.0959]
[1765563288505,9.71188086,3089.0,3088.1,0.0959]
[1765563288711,10.17348086,3089.0,3088.1,0.0959]
[1765563288910,0.1904,3088.9,3088.1,0.0959]
[1765563289569,1.23247529,3088.9,3088.1,0.0959]
[1765563290002,0.4961,3088.2,3087.8,3.23854812]
[1765563290206,0.4961,3087.4,3087.2,0.002]
[1765563290378,6.47752298,3087.6,3087.2,0.002]
[1765563291001,6.97722298,3087.6,3087.2,0.002]
[1765563291202,0.4706,3087.3,3087.2,0.002]
[1765563291800,17.72341865,3087.3,3087.2,0.002]
[1765563291986,0.405504,3087.0,3086.9,0.002]
[1765563292183,9.24024236,3087.0,3086.9,0.002]
[1765563292405,9.41552836,3087.0,3086.9,0.002]
[1765563292704,12.65491935,3087.0,3086.9,0.002]
[1765563293002,12.65491935,3087.0,3085.6,0.002]
[1765563293003,13.163719,3086.5,3085.6,0.002]
[1765563293202,0.6645,3086.6,3085.6,0.002]
[1765563293203,11.67287229,3086.2,3085.6,0.002]
[1765563293391,7.93622729,3086.2,3085.6,0.002]
[1765563293590,8.43592729,3086.2,3085.6,0.002]
[1765563293773,3.51202829,3086.2,3085.6,0.002]
[1765563293977,0.9202,3086.2,3085.6,0.002]
[1765563294183,7.45390429,3086.2,3085.6,0.002]
[1765563294389,1.50067529,3086.2,3085.6,0.002]
[1765563294906,9.83047099,3086.2,3085.6,0.002]
[1765563295108,9.36541599,3086.2,3085.6,0.002]
[1765563296192,4.74090599,3086.2,3085.6,0.002]
[1765563296717,34.56069568,3086.2,3085.6,0.002]
[1765563296886,0.58047529,3085.5,3084.4,0.3798]
[1765563297087,1.10447529,3085.5,3084.4,3.62189168]
[1765563297291,1.10447529,3085.5,3084.4,0.3798]
[1765563297806,9.72258231,3085.6,3084.6,0.58047529]
[1765563297807,6.48172154,3085.6,3084.6,0.58047529]
[1765563298114,10.22228231,3085.6,3084.3,0.3798]
[1765563298613,10.22228231,3085.6,3084.3,3.62201904]
[1765563299313,0.4997,3085.5,3084.3,0.3798]
[1765563299814,6.48172154,3085.6,3084.3,6.86422299]
[1765563300010,0.58047529,3086.0,3085.5,0.4825]
[1765563300190,0.4997,3085.9,3084.4,0.96027529]
[1765563300390,0.4997,3085.9,3084.5,0.3798]
[1765563300391,1.0237,3085.9,3084.5,0.3798]
[1765563300714,1.89564013,3086.0,3084.5,0.3798]
[1765563301018,6.48130144,3085.8,3084.6,3.24191143]
[1765563301215,9.72195216,3085.8,3084.6,0.3798]
[1765563301383,0.58047529,3085.5,3084.1,0.524]
[1765563301586,0.524,3085.4,3084.1,0.524]
[1765563301815,0.524,3085.4,3084.1,0.9038]
[1765563302010,1.0237,3085.4,3084.2,0.3798]
[1765563302221,1.0237,3085.4,3084.1,0.524]
[1765563302423,0.4997,3085.3,3084.1,4.19065634]
[1765563302791,0.4997,3085.3,3084.1,0.94822328]
[1765563303111,0.4997,3085.3,3084.2,6.86442805]
[1765563303112,6.48235178,3085.3,3084.2,6.86442805]
[1765563303620,3.2405457,3085.9,3085.2,0.4825]
[1765563303802,3.2405457,3085.9,3085.4,0.3798]
[1765563304006,1.0237,3086.1,3085.4,0.3798]
[1765563304007,3.24037208,3086.1,3085.4,0.3798]
[1765563304203,0.58047529,3086.3,3085.4,0.3798]
[1765563304404,0.58047529,3086.3,3085.5,0.3798]
[1765563305121,6.4804614,3086.2,3085.5,0.3798]
[1765563305315,6.4804614,3086.2,3085.2,0.1027]
[1765563305720,6.4804614,3086.2,3085.2,3.7687318]
[1765563306028,6.4804614,3086.2,3085.3,3.62093588]
[1765563306518,6.4804614,3086.2,3085.4,3.24106231]
[1765563306697,6.4804614,3086.2,3085.3,3.62093246]
[1765563307188,6.97974146,3086.4,3085.2,0.52748437]
[1765563307498,0.58047529,3086.3,3085.2,0.1027]
[1765563307703,0.58047529,3086.3,3085.3,0.3798]
[1765563307892,3.24002073,3086.4,3085.3,6.86213155]
[1765563308086,6.48009622,3086.4,3085.3,6.86213155]
[1765563308429,15.314406,3086.0,3084.7,0.58047529]
[1765563308726,2.0554406,3085.9,3084.7,0.3822373]
[1765563309028,7.85295,3085.8,3084.5,0.524]
[1765563309317,6.48151148,3085.7,3084.6,3.24191143]
[1765563309526,6.98121148,3085.7,3084.6,3.24191143]
[1765563309833,3.24075574,3085.7,3084.7,0.3798]
[1765563310118,3.24075574,3085.7,3084.8,0.68636229]
[1765563310530,3.24075574,3085.7,3084.8,1.06616229]
[1765563311328,1.0237,3085.6,3084.1,0.3798]
[1765563311491,0.4997,3085.6,3084.2,0.3798]
[1765563311697,0.4997,3085.6,3084.7,0.58047529]
[1765563312428,0.4997,3085.6,3084.7,3.24177611]
[1765563312727,0.524,3085.7,3084.8,3.24167779]
[1765563312898,30.0,3085.8,3084.8,3.89003569]
[1765563313229,0.524,3085.8,3084.8,4.26983569]
[1765563313429,3.24075574,3085.7,3084.8,7.51153693]
[1765563313797,3.24075574,3085.7,3084.8,7.13173693]
[1765563313990,3.24075574,3085.7,3084.9,1.09297369]
[1765563314725,6.48151148,3085.7,3084.9,1.09297369]
[1765563315322,3.24075574,3085.7,3084.9,1.09297369]
[1765563315512,6.4813096,3085.8,3084.9,4.33446912]
[1765563315824,6.47983152,3086.5,3085.7,0.4825]
[1765563316025,0.99135917,3086.4,3085.8,0.3798]
[1765563316226,0.58047529,3086.4,3085.8,0.3798]
[1765563316543,6.47983152,3086.5,3085.8,0.3798]
[1765563317397,0.4997,3087.0,3085.8,0.7596]
[1765563317610,13.8023726,3087.4,3086.0,0.58047529]
[1765563317820,5.176552,3087.2,3085.9,0.524]
[1765563318132,4.60775,3087.0,3085.9,0.524]
[1765563318297,0.5647452,3087.1,3085.2,0.524]
[1765563318298,0.4894,3086.0,3085.2,0.524]
[1765563318493,0.4894,3086.0,3085.0,0.3798]
[1765563318699,0.4894,3086.0,3085.0,0.9038]
[1765563319521,6.4810914,3085.9,3085.0,0.9038]
[1765563320025,24.129024,3085.8,3084.8,0.1813]
[1765563320212,24.129024,3085.8,3084.0,0.0959]
[1765563320213,0.58047529,3085.5,3084.0,0.0959]
[1765563320446,0.58047529,3085.5,3084.1,0.523]
[1765563320735,0.457,3085.4,3084.1,3.76543431]
[1765563321025,0.457,3085.4,3084.1,1.38516096]
[1765563321226,0.523,3085.6,3084.4,3.24205738]
[1765563321413,0.457,3085.8,3084.7,3.24173352]
[1765563321617,3.24075574,3085.7,3084.7,3.76473352]
[1765563321933,3.24075574,3085.7,3084.8,0.3798]
[1765563322840,3.24075574,3085.7,3084.9,0.523]
[1765563322841,6.93851148,3085.7,3084.9,0.523]
[1765563323142,6.48151148,3085.7,3084.9,0.523]
[1765563323446,3.24075574,3085.7,3085.0,0.3798]
[1765563323737,1.03747529,3086.0,3085.0,0.3798]
[1765563323918,1.03747529,3086.0,3085.1,0.1813]
[1765563324125,0.457,3086.0,3085.1,0.1813]
[1765563324306,6.48067138,3086.1,3085.2,0.4122128]
[1765563324504,3.94070283,3086.1,3085.2,0.4122128]
[1765563324720,7.18105689,3086.1,3085.2,0.3798]
[1765563324918,7.18105689,3086.1,3085.1,0.1813]
[1765563325116,0.457,3086.0,3085.1,0.1813]
[1765563325412,7.18105689,3086.1,3085.1,0.5611]
[1765563325413,3.24033569,3086.1,3085.1,0.5611]
[1765563325624,3.23983244,3086.6,3085.3,3.24117589]
[1765563325625,0.523,3086.6,3085.3,3.24117589]
[1765563325821,0.457,3086.7,3085.4,0.3798]
[1765563326044,3.23960088,3086.8,3085.5,0.523]
[1765563326242,6.47923744,3086.8,3085.5,0.523]
[1765563326401,6.47923744,3086.8,3085.6,0.3798]
[1765563326603,6.47923744,3086.8,3085.4,0.58047529]
[1765563326604,0.457,3086.7,3085.4,0.58047529]
[1765563326912,0.523,3086.6,3085.3,0.523]
[1765563327106,2.161746,3086.5,3085.3,1.10347529]
[1765563327330,0.523,3086.6,3085.4,0.3798]
[1765563327535,0.001,3087.5,3085.3,1.10347529]
[1765563327536,0.001,3087.5,3086.5,0.4825]
[1765563327734,0.001,3087.5,3086.6,5.0265436]
[1765563327912,0.001,3087.5,3086.6,1.86307529]
[1765563328235,0.001,3087.4,3086.6,1.86307529]
[1765563328417,0.001,3087.4,3086.6,1.34007529]
[1765563328617,0.001,3087.4,3086.7,0.524]
[1765563328827,0.001,3087.4,3086.6,0.9038]
[1765563329930,0.001,3087.4,3086.7,6.47941166]
[1765563330236,0.001,3087.4,3086.7,6.85921166]
[1765563330441,0.001,3087.4,3086.8,0.3798]
[1765563330814,0.001,3087.4,3087.3,0.4757]
[1765563331341,0.001,3087.4,3087.3,0.8555]
[1765563332207,0.001,3087.4,3087.3,4.6750515]
[1765563332411,0.001,3087.4,3087.3,5.19495665]
[1765563334341,0.001,3087.4,3087.1,0.0959]
[1765563334540,0.001,3087.4,3087.3,0.3798]
[1765563334705,0.001,3087.4,3087.3,0.524]
[1765563335105,0.001,3087.4,3087.3,0.9038]
[1765563335339,0.001,3087.4,3087.3,4.52267621]
[1765563335539,0.001,3087.4,3087.3,5.30846085]
[1765563335739,0.001,3087.4,3087.3,6.29444014]
[1765563336124,0.001,3087.4,3087.3,14.65126828]
[1765563336324,0.001,3087.5,3087.3,14.65126828]
[1765563336645,0.457,3089.4,3087.3,14.65126828]
[1765563336646,0.6372,3089.4,3088.1,0.405504]
[1765563336947,3.23781168,3089.5,3088.2,0.9038]
[1765563337544,3.23781168,3089.5,3088.4,0.405504]
[1765563337545,0.001,3089.5,3088.4,0.405504]
[1765563337748,3.23778778,3089.5,3088.4,0.405504]
[1765563337946,3.23778778,3089.5,3088.5,0.3798]
[1765563338133,0.001,3089.5,3088.6,3.23771287]
[1765563338332,0.001,3089.5,3088.7,1.20953285]
[1765563338748,0.001,3089.5,3088.8,0.3798]
[1765563338962,0.001,3089.5,3089.4,0.1813]
[1765563339253,0.001,3089.5,3088.9,0.1813]
[1765563339458,0.457,3089.4,3088.3,0.1813]
[1765563339621,0.457,3089.4,3088.4,0.523]
[1765563340221,6.4739585,3089.3,3088.4,0.523]
[1765563340539,1.15009585,3089.2,3088.4,0.523]
[1765563341822,0.69309585,3089.2,3088.4,0.523]
[1765563342024,0.457,3089.1,3088.1,0.1813]
[1765563342220,6.47479684,3088.9,3087.6,0.3798]
[1765563342455,6.47479684,3088.9,3087.7,0.523]
[1765563342656,6.47479684,3088.9,3088.1,3.23820494]
[1765563342827,3.23739842,3088.9,3088.2,0.7043]
[1765563343023,3.23711619,3089.2,3088.2,1.28477529]
[1765563343249,6.47423238,3089.2,3088.2,1.28477529]
[1765563343445,6.47423238,3089.2,3088.2,0.7043]
[1765563344050,10.16834857,3089.2,3088.3,0.45901896]
[1765563344240,10.16834857,3089.2,3088.4,0.524]
[1765563344437,6.93123238,3089.2,3088.4,0.524]
[1765563344627,9.71134857,3089.2,3088.2,0.1813]
[1765563344826,7.275925,3089.0,3088.4,0.524]
[1765563345152,6.52278,3089.0,3088.1,0.524]
[1765563345353,12.94846476,3089.2,3088.1,0.524]
[1765563345354,1.335178,3088.9,3088.1,0.524]
[1765563345554,0.6372,3088.9,3088.1,0.524]
[1765563345860,0.457,3088.8,3088.1,0.7053]
[1765563346559,6.4752161,3088.7,3087.2,0.405504]
[1765563346723,3.798713,3088.6,3087.2,0.3798]
[1765563346927,9.71282415,3088.7,3087.3,0.523]
[1765563346928,0.457,3088.5,3087.3,0.523]
[1765563347227,1.79774322,3088.5,3087.3,0.90880132]
[1765563347423,1.79774322,3088.5,3087.5,3.23886536]
[1765563347627,1.79774322,3088.5,3087.3,1.86907661]
[1765563347828,1.79774322,3088.5,3087.5,3.23880305]
[1765563348024,1.79774322,3088.5,3087.3,0.9028]
[1765563348247,0.457,3088.4,3087.4,3.23893671]
[1765563348624,0.457,3088.4,3087.1,0.0959]
[1765563348625,6.47605478,3088.3,3087.1,0.0959]
[1765563348831,0.69330548,3088.2,3087.2,3.76207956]
[1765563349031,1.15030548,3088.2,3087.2,3.76207956]
[1765563349229,1.15030548,3088.2,3087.2,0.523]
[1765563349629,0.457,3088.1,3087.2,0.523]
[1765563350163,9.71408217,3088.3,3087.3,3.2389961]
[1765563350164,6.47605478,3088.3,3087.3,3.2389961]
[1765563350492,6.47605478,3088.3,3087.4,0.37619961]
[1765563350841,0.58047529,3088.6,3087.4,3.61515126]
[1765563351035,6.4752161,3088.7,3087.5,0.3798]
[1765563351468,6.4752161,3088.7,3087.5,0.96027529]
[1765563351765,6.4752161,3088.7,3087.6,0.78143979]
[1765563351968,6.4752161,3088.7,3087.7,0.523]
[1765563352272,3.23747031,3088.9,3087.7,0.9028]
[1765563352434,0.4979,3088.8,3087.8,0.523]
[1765563352839,6.4752161,3088.7,3087.8,3.76150929]
[1765563353162,6.4752161,3088.7,3087.9,0.37615093]
[1765563354033,6.4752161,3088.7,3087.9,3.61459777]
[1765563354234,6.4752161,3088.7,3088.0,0.523]
[1765563354431,0.4979,3088.6,3088.0,0.523]
[1765563354835,6.47563542,3088.5,3088.0,0.523]
[1765563355236,6.97248724,3089.0,3088.0,0.523]
[1765563355488,0.4979,3088.9,3088.0,0.523]
[1765563355633,0.4979,3088.9,3088.1,0.523]
[1765563355970,1.538801,3088.9,3088.1,0.523]
[1765563356368,0.4979,3088.8,3088.1,0.523]
[1765563356567,0.4979,3088.8,3087.6,0.58047529]
[1765563356769,3.23760805,3088.7,3088.0,3.76133151]
[1765563357134,6.4752161,3088.7,3088.0,0.523]
[1765563357369,3.23760805,3088.7,3088.0,0.523]
[1765563357568,7.17158516,3089.1,3088.1,0.03238237]
[1765563357742,7.17158516,3089.1,3088.2,0.74118631]
[1765563357743,3.43648882,3089.1,3088.2,0.74118631]
[1765563358074,0.4979,3089.0,3088.3,0.523]
[1765563358237,0.4979,3089.0,3088.1,0.523]
[1765563358866,6.47479684,3088.9,3088.1,0.523]
[1765563359275,6.4746648,3089.0,3088.1,3.7612371]
[1765563359461,6.9725648,3089.0,3088.2,0.41410371]
[1765563359661,6.9725648,3089.0,3088.0,3.61810627]
[1765563359861,6.9725648,3089.0,3088.1,0.523]
[1765563360071,0.4979,3088.9,3088.2,0.522]
[1765563360279,0.4979,3088.9,3087.2,0.3798]
[1765563360439,0.4979,3088.9,3087.3,1.15087878]
[1765563360440,0.69725648,3088.8,3087.3,1.15087878]
[1765563360640,0.4979,3088.9,3087.3,0.57040349]
[1765563360854,6.47500646,3088.8,3087.6,0.58047529]
[1765563361237,3.23750323,3088.8,3087.7,0.3798]
[1765563361476,0.1993,3089.1,3087.8,0.55438551]
[1765563361660,3.23729362,3089.0,3087.8,0.522]
[1765563361876,7.3161466,3089.0,3087.9,0.9018]
[1765563362183,3.23729362,3089.0,3087.9,0.522]
[1765563362388,3.23729362,3089.0,3088.0,0.3798]
[1765563362777,0.4979,3088.9,3087.6,0.58047529]
[1765563363111,6.47542574,3088.6,3087.7,0.522]
[1765563363307,6.47542574,3088.6,3087.7,1.10247529]
[1765563363455,0.4979,3088.5,3087.7,1.10247529]
[1765563364259,0.4979,3088.5,3087.6,3.23871014]
[1765563364260,0.4979,3088.5,3087.0,0.3798]
[1765563364470,0.4979,3088.5,3087.2,0.9018]
[1765563364789,0.4979,3088.5,3087.4,3.23892706]
[1765563364977,3.23802739,3088.3,3087.3,6.47815242]
[1765563365288,3.23802739,3088.3,3087.3,6.85795242]
[1765563365454,0.4979,3088.5,3087.4,0.3798]
[1765563365658,0.4979,3088.9,3087.5,0.405504]
[1765563365858,0.58047529,3088.9,3087.5,0.405504]
[1765563366084,6.47458724,3089.0,3087.7,0.98597929]
[1765563366085,3.23729362,3089.0,3087.7,0.98597929]
[1765563366287,0.1993,3089.1,3087.9,0.405504]
[1765563366454,0.4979,3089.6,3089.0,0.3798]
[1765563366665,3.23604585,3090.2,3089.0,0.9018]
[1765563366666,3.2365861,3089.7,3089.0,0.9018]
[1765563366885,0.4979,3090.2,3089.2,6.47416806]
[1765563367193,0.4979,3090.2,3089.4,0.3798]
[1765563367361,3.23627584,3090.0,3089.4,0.3798]
[1765563367557,3.23626999,3090.0,3089.4,0.3798]
[1765563367756,0.1993,3089.9,3089.1,0.1813]
[1765563369093,6.47391086,3089.8,3089.1,0.1813]
[1765563369616,0.001,3089.8,3089.1,3.79827326]
[1765563369900,0.001,3089.8,3089.1,7.03546208]
[1765563370201,0.001,3089.8,3089.4,0.3798]
[1765563370416,0.001,3089.8,3089.4,0.7596]
[1765563371165,0.001,3089.8,3089.4,4.57694976]
[1765563371366,0.001,3089.8,3089.4,5.36318397]
[1765563371570,0.001,3089.8,3089.4,4.98338397]
[1765563371893,0.001,3089.8,3089.4,5.88518397]
[1765563372270,0.001,3089.8,3089.4,2.2685095]
[1765563372496,0.001,3089.8,3089.4,4.71914976]
[1765563372684,0.001,3089.8,3089.4,1.48227529]
[1765563372884,0.001,3089.8,3089.4,4.71914976]
[1765563373596,0.001,3089.8,3089.4,0.9018]
[1765563373893,0.001,3089.8,3089.4,4.51847447]
[1765563374078,0.001,3089.8,3089.4,5.2940207]
[1765563374569,0.001,3089.8,3089.4,5.87449599]
[1765563374766,0.001,3089.8,3089.4,6.27999999]
[1765563375310,0.001,3089.8,3089.5,0.98597929]
[1765563375501,0.001,3089.8,3089.7,0.3798]
[1765563375695,0.001,3089.8,3089.7,0.9018]
[1765563376003,0.001,3089.8,3089.7,1.46780753]
[1765563377006,0.001,3089.8,3089.7,1.87331153]
[1765563377201,0.001,3089.8,3089.7,5.690347]
[1765563379219,0.001,3090.3,3090.2,12.1928102]
[1765563379375,0.001,3090.3,3090.2,13.4734102]
[1765563379571,0.4914,3091.7,3090.2,13.4734102]
[1765563379572,0.1993,3092.0,3090.3,0.405504]
[1765563379808,3.43064724,3092.2,3091.4,0.96027529]
[1765563380079,0.6881,3092.2,3091.5,0.522]
[1765563380488,0.4716,3092.1,3091.5,0.522]
[1765563381178,0.4716,3092.1,3091.7,0.58047529]
[1765563381590,0.1967,3092.2,3091.5,4.33713709]
[1765563381793,3.43071698,3092.2,3091.6,0.43371371]
[1765563382304,3.43066418,3092.2,3091.6,0.43371371]
[1765563382492,3.90226418,3092.2,3091.6,0.43371371]
[1765563382698,0.6517,3091.7,3091.6,0.521]
[1765563382895,0.6517,3091.7,3090.6,7.97079441]
[1765563382896,0.6517,3091.7,3090.3,7.97079441]
[1765563383209,6.4695607,3091.4,3090.4,0.521]
[1765563383409,0.6517,3090.5,3089.7,0.18620753]
[1765563383596,0.6517,3090.5,3089.8,0.521]
[1765563383798,0.6517,3090.5,3089.9,3.23634867]
[1765563383978,0.6517,3090.5,3089.8,3.7574292]
[1765563384183,0.1829,3090.8,3090.2,3.23603589]
[1765563384405,0.1829,3090.8,3090.3,0.84460359]
[1765563384605,0.4716,3091.0,3090.3,0.84460359]
[1765563384814,0.4716,3091.0,3090.3,0.521]
[1765563385113,0.1829,3090.9,3090.3,0.521]
[1765563385292,0.1829,3090.9,3090.3,3.75691481]
[1765563385613,0.4716,3091.4,3090.3,7.37264659]
[1765563386075,0.4716,3091.4,3090.4,7.97079441]
[1765563386279,0.4716,3091.4,3090.5,1.5343441]
[1765563387207,0.1829,3091.7,3090.5,1.5343441]
[1765563387208,0.1829,3091.7,3090.7,6.47102598]
[1765563387413,0.1829,3091.7,3090.8,1.10147529]
[1765563387981,0.1967,3092.2,3090.8,1.10147529]
[1765563387982,0.1967,3092.2,3091.6,0.0959]
[1765563388200,0.1967,3092.2,3091.7,0.521]
[1765563388401,0.1829,3092.4,3091.7,0.521]
[1765563388589,0.4716,3092.7,3091.7,0.521]
[1765563389412,0.58047529,3093.3,3091.7,0.521]
[1765563389413,0.001,3093.7,3092.6,8.35059441]
[1765563389621,0.001,3093.7,3093.3,0.1813]
[1765563389784,0.001,3093.7,3093.3,1.0821]
[1765563389979,0.001,3093.7,3093.3,1.4619]
[1765563390317,0.001,3093.7,3093.3,1.0821]
[1765563391116,0.001,3093.7,3093.3,0.7023]
[1765563391408,0.001,3093.7,3093.3,3.93509345]
[1765563391587,0.001,3093.7,3093.3,5.03169406]
[1765563391787,0.001,3093.7,3093.3,5.41149406]
[1765563391993,0.001,3093.7,3093.3,5.81699806]
[1765563392620,0.001,3093.7,3093.3,5.47096935]
[1765563392793,0.001,3093.7,3093.4,0.98597929]
[1765563392994,0.001,3093.7,3093.6,9.3365737]
[1765563393391,0.001,3093.7,3093.6,12.94885365]
[1765563393932,0.001,3094.0,3093.7,0.98597929]
[1765563394222,0.001,3094.0,3093.9,0.83370749]
[1765563394579,0.001,3094.0,3093.9,1.21350749]
[1765563394784,0.001,3094.0,3093.9,1.44984612]
[1765563395391,0.001,3094.0,3093.9,5.20301264]
[1765563396417,3.41343044,3095.5,3094.0,0.98597929]
[1765563396418,0.1829,3095.5,3094.0,0.98597929]
[1765563396593,0.1829,3095.5,3094.7,7.97079441]
[1765563396793,0.1829,3095.5,3094.8,0.67210349]
[1765563397012,0.1829,3095.7,3094.9,0.86428979]
[1765563397394,0.1829,3095.7,3095.0,3.23101777]
[1765563397818,3.41319421,3095.7,3094.9,4.09538211]
[1765563398115,3.41319421,3095.7,3094.9,3.94538211]
[1765563398313,3.41319421,3095.7,3095.0,0.04840349]
[1765563398626,3.41319421,3095.7,3094.9,0.71428979]
[1765563398627,0.4688,3095.0,3093.9,0.23633863]
[1765563398928,0.4688,3094.9,3094.0,0.521]
[1765563399086,0.6517,3094.9,3093.4,3.23266935]
[1765563399285,0.1829,3093.9,3093.3,3.41407791]
[1765563399485,0.1829,3093.9,3093.4,0.521]
[1765563399916,0.1829,3093.9,3093.3,3.41402116]
[1765563400317,0.1829,3093.9,3093.4,0.521]
[1765563400525,0.4716,3094.3,3093.4,8.49179441]
[1765563400721,0.4716,3094.3,3093.4,7.97079441]
[1765563400901,0.4716,3094.3,3093.5,0.521]
[1765563401097,0.4716,3094.3,3093.4,1.13848156]
[1765563401326,0.4716,3094.3,3093.5,0.52]
[1765563401623,0.4716,3094.3,3092.9,7.97079441]
[1765563401624,0.6517,3093.4,3092.0,0.3798]
[1765563401831,0.4688,3093.2,3092.3,3.23380177]
[1765563401989,0.4688,3093.2,3092.7,3.23334537]
[1765563402198,0.1829,3093.4,3092.8,4.07764114]
[1765563402608,0.1829,3093.4,3092.8,0.84433454]
[1765563402922,0.1829,3093.4,3092.8,4.07762113]
[1765563403601,0.1829,3093.4,3092.8,0.84433454]
[1765563403806,0.1829,3093.4,3092.8,4.07762326]
[1765563404020,3.4155975,3093.4,3092.9,0.40776233]
[1765563404328,0.1829,3093.4,3092.9,0.40776233]
[1765563404714,0.4688,3093.0,3092.2,0.58047529]
[1765563404899,3.41559544,3093.4,3091.6,8.42659374]
[1765563404900,0.9404,3092.9,3091.6,8.42659374]
[1765563405105,0.9404,3092.9,3092.1,3.23398171]
[1765563405299,0.9404,3092.9,3092.2,3.75492086]
[1765563405300,0.4716,3092.8,3092.2,3.75492086]
[1765563405499,0.4688,3092.9,3092.4,3.23369969]